bitfinex/quotes_ETHUSD_20240902
["timestamp","ask_amount","ask_price","bid_price","bid_amount"]
[1725250437682,2.2628,2456.8,2456.2,5.69966]
[1725250437879,2.2628,2456.8,2456.2,7.19429511]
[1725250438081,2.84951,2456.6,2456.0,7.32]
[1725250438430,2.8498,2456.4,2456.0,7.32]
[1725250438787,2.2628,2456.5,2456.0,7.32]
[1725250439500,2.2628,2456.5,2456.0,10.25150431]
[1725250439689,2.2628,2456.5,2456.1,1.68138554]
[1725250440090,2.2628,2456.5,2456.1,4.53132554]
[1725250440824,2.2628,2456.5,2456.0,10.17008]
[1725250441212,2.84973,2456.4,2455.7,2.85044]
[1725250441421,2.3479,2456.3,2455.7,5.70087]
[1725250441728,2.3479,2456.3,2455.7,4.52431611]
[1725250442106,5.19774,2456.3,2455.7,4.52431611]
[1725250442504,2.3479,2456.3,2455.7,7.37474611]
[1725250443393,2.3044,2456.5,2455.8,1.45812232]
[1725250443596,2.3044,2456.5,2456.1,2.85003]
[1725250446211,2.3044,2456.5,2455.9,5.21087]
[1725250446417,2.3044,2456.5,2456.0,0.55]
[1725250447710,2.3044,2456.5,2456.0,3.40008]
[1725250449638,5.15401,2456.5,2455.9,8.06107]
[1725250449814,5.15401,2456.5,2455.9,9.45182611]
[1725250450144,2.3044,2456.5,2456.0,2.85015]
[1725250453356,5.15401,2456.5,2455.9,4.24092611]
[1725250453557,2.3857,2456.3,2455.9,2.85017]
[1725250454018,2.3857,2456.3,2455.8,10.17035]
[1725250454851,8.08541,2456.3,2455.8,7.32]
[1725250455150,5.23552,2456.3,2455.8,7.32]
[1725250455746,8.0854,2456.3,2455.8,7.32]
[1725250456257,5.23552,2456.3,2455.8,7.32]
[1725250457062,8.0854,2456.3,2455.8,7.32]
[1725250458263,2.2524,2456.2,2455.8,7.32]
[1725250459122,2.2524,2456.2,2455.7,2.8504]
[1725250459316,5.10234,2456.2,2455.7,2.8504]
[1725250459549,2.85006,2456.1,2455.6,4.22730108]
[1725250459856,2.85006,2456.1,2455.5,10.17067]
[1725250460067,2.477,2456.0,2455.5,10.17067]
[1725250461023,2.477,2456.0,2455.5,13.02135]
[1725250461563,2.477,2456.0,2455.5,13.12747411]
[1725250462432,2.477,2456.0,2455.5,10.17067]
[1725250463225,2.85006,2456.1,2455.6,4.22725108]
[1725250463425,2.85006,2456.1,2455.6,1.37669108]
[1725250464748,5.70017,2456.1,2455.6,1.37669108]
[1725250465261,2.85006,2456.1,2455.6,1.37669108]
[1725250465834,5.32723,2456.0,2455.6,1.37669108]
[1725250470570,2.85028,2455.9,2455.6,1.37669108]
[1725250470868,2.85028,2455.9,2455.5,7.32]
[1725250471272,2.2934,2455.8,2455.5,7.32]
[1725250471477,2.85057,2455.7,2455.5,7.32]
[1725250473848,2.85057,2455.7,2455.2,4.22777108]
[1725250476337,2.2934,2455.8,2455.2,4.22777108]
[1725250476963,5.14382,2455.8,2455.2,4.22777108]
[1725250477438,2.85064,2455.6,2455.1,7.32]
[1725250477786,2.85075,2455.5,2455.1,7.32]
[1725250477991,2.3251,2455.4,2455.1,7.32]
[1725250481280,2.3251,2455.4,2455.1,10.95573311]
[1725250482777,2.3251,2455.4,2455.1,3.63573311]
[1725250483026,2.3251,2455.4,2455.0,4.22797108]
[1725250483372,2.3251,2455.4,2455.0,1.37669108]
[1725250483619,5.17598,2455.4,2455.0,1.37669108]
[1725250483839,2.3251,2455.4,2455.0,1.37669108]
[1725250486114,5.32337,2455.7,2455.2,1.37669108]
[1725250486288,5.85011,2456.1,2455.4,4.22748108]
[1725250486493,2.4728,2455.9,2455.4,4.22748108]
[1725250486878,2.4728,2455.9,2455.2,4.22772108]
[1725250486879,2.8504,2455.8,2455.2,4.22772108]
[1725250487080,3.412703,2455.8,2455.2,7.07872108]
[1725250487294,5.3231,2455.9,2455.3,2.93241691]
[1725250488100,8.17344,2455.9,2455.3,2.93241691]
[1725250488325,8.17344,2455.9,2455.3,2.85097]
[1725250488489,2.4387,2455.7,2455.3,0.08144691]
[1725250489195,2.4387,2455.7,2455.3,2.93239691]
[1725250495029,5.2534,2455.9,2455.3,2.93239691]
[1725250495227,5.2534,2455.9,2455.3,3.89284571]
[1725250496271,2.4031,2456.4,2455.8,1.37669108]
[1725250496581,2.4031,2456.4,2455.9,0.37490911]
[1725250496777,2.4031,2456.4,2455.9,2.85019]
[1725250496926,2.4031,2456.4,2455.9,2.93161795]
[1725250497330,2.4031,2456.4,2455.9,2.85019]
[1725250498866,5.25283,2456.4,2455.8,1.37669108]
[1725250499071,2.4183,2456.2,2455.6,4.22724108]
[1725250499443,2.4183,2456.2,2455.6,7.07778108]
[1725250500150,2.4183,2456.2,2455.7,2.8505]
[1725250501422,2.4183,2456.2,2455.8,2.85038]
[1725250501685,5.84964,2456.5,2456.0,1.37669108]
[1725250501686,2.4679,2456.5,2456.0,1.37669108]
[1725250501887,2.4679,2456.5,2456.0,2.85009]
[1725250502253,2.4679,2456.5,2456.0,5.18799]
[1725250502452,2.4679,2456.7,2456.2,2.84992]
[1725250502855,2.4679,2456.7,2456.4,2.84967]
[1725250503048,2.4679,2456.7,2456.4,2.84962]
[1725250504186,2.4679,2456.7,2456.2,2.84984]
[1725250504393,0.24679,2456.6,2456.2,2.84984]
[1725250505160,0.24679,2456.6,2456.0,2.85011]
[1725250505441,0.24679,2456.6,2455.9,10.17026]
[1725250505442,5.20975,2456.5,2455.9,10.17026]
[1725250505645,0.59647976,2456.4,2455.9,2.85026]
[1725250506058,2.3601,2456.5,2456.0,5.37202874]
[1725250506242,5.84916,2456.9,2456.0,5.37202874]
[1725250506243,2.2756,2456.8,2456.0,5.37202874]
[1725250506476,2.860516,2456.8,2456.3,2.84973]
[1725250507494,2.860516,2456.8,2456.2,5.69969]
[1725250507660,0.8709676,2456.7,2456.2,5.69969]
[1725250507994,0.8709676,2456.7,2456.2,2.84983]
[1725250508344,0.8709676,2456.7,2456.0,2.85009]
[1725250508345,2.2756,2456.6,2456.0,2.85009]
[1725250509164,2.8497,2456.4,2455.9,2.85027]
[1725250509363,2.8497,2456.4,2455.8,2.8503]
[1725250509364,2.59515676,2456.5,2456.0,2.85016]
[1725250509609,2.2805,2456.5,2456.0,2.93158252]
[1725250509806,2.2805,2456.5,2456.0,2.85016]
[1725250509960,2.2805,2456.5,2456.0,2.93158317]
[1725250510586,2.2805,2456.5,2456.2,2.84992]
[1725250511102,2.80855,2456.5,2456.2,2.84992]
[1725250512316,3.0,2456.7,2456.2,2.93128318]
[1725250512462,2.3046,2456.8,2456.3,2.84973]
[1725250512663,2.3046,2456.8,2456.5,2.84956]
[1725250515893,2.3046,2456.8,2456.5,0.34956]
[1725250516102,2.84882,2457.2,2453.3,5.35307]
[1725250516103,2.0,2454.8,2453.3,5.35307]
[1725250516473,0.85227465,2454.8,2454.2,2.85222]
[1725250516605,0.85227465,2455.4,2454.4,2.852]
[1725250516808,2.85106,2455.3,2454.4,2.85199]
[1725250517033,2.85106,2455.3,2454.5,0.3387192]
[1725250517381,2.85127,2455.1,2454.3,0.535202]
[1725250518420,2.85132,2455.0,2454.3,0.535202]
[1725250519390,2.85132,2455.0,2454.4,0.55]
[1725250519723,2.8515,2454.9,2454.4,0.9437392]
[1725250520280,2.85156,2454.8,2454.4,0.9437392]
[1725250521939,2.85167,2454.7,2454.3,0.535202]
[1725250522230,2.85167,2454.7,2454.1,2.4998]
[1725250522437,2.85167,2454.7,2454.2,0.55]
[1725250522638,2.8518,2454.6,2454.2,0.55]
[1725250522820,2.8518,2454.6,2454.2,1.15498]
[1725250524141,2.8518,2454.6,2453.1,2.85348]
[1725250524142,2.85204,2454.4,2453.7,5.26442]
[1725250524309,2.85204,2454.4,2453.7,2.4116]
[1725250524500,2.85216,2454.3,2453.8,0.526449]
[1725250524903,2.85204,2454.4,2453.8,0.526449]
[1725250525344,2.85225,2454.2,2453.8,0.526449]
[1725250525556,2.85225,2454.2,2453.7,2.4116]
[1725250526817,2.85248,2454.0,2453.7,2.4116]
[1725250531621,2.85248,2454.0,2453.4,13.002377]
[1725250531960,2.85248,2454.0,2453.5,1.8502377]
[1725250532514,5.70463,2454.2,2453.5,1.8502377]
[1725250532784,2.85222,2454.3,2453.7,2.8528]
[1725250532947,2.85226,2454.2,2453.7,0.47845401]
[1725250533150,2.85204,2454.4,2453.7,3.41276183]
[1725250533457,2.85204,2454.4,2453.8,0.422774]
[1725250533760,2.8522,2454.3,2453.8,0.422774]
[1725250534172,2.85225,2454.2,2453.8,0.422774]
[1725250534766,2.85225,2454.2,2453.5,1.8502377]
[1725250534925,2.85225,2454.2,2453.5,4.7032877]
[1725250535463,2.85225,2454.2,2453.6,2.85285]
[1725250535770,2.85225,2454.2,2453.5,4.7032177]
[1725250536067,2.85225,2454.2,2453.6,1.43171177]
[1725250537026,2.85243,2454.1,2453.6,1.43171177]
[1725250538967,2.85225,2454.2,2453.6,4.28462177]
[1725250541231,2.85225,2454.2,2453.7,2.85283]
[1725250541460,2.85225,2454.2,2453.7,4.03689695]
[1725250551915,2.85225,2454.2,2453.7,2.85283]
[1725250555983,4.23377012,2454.4,2453.8,2.2882]
[1725250556185,2.85214,2454.3,2453.8,2.2882]
[1725250556410,3.56073101,2454.3,2453.8,2.2882]
[1725250560415,0.70859101,2454.3,2453.8,2.2882]
[1725250561731,0.85227465,2454.8,2454.4,2.4774]
[1725250561937,3.23444828,2454.7,2454.4,2.4774]
[1725250562105,3.23444828,2454.7,2454.1,2.85231]
[1725250562106,3.23455828,2454.6,2454.1,2.4774]
[1725250562435,0.38276828,2454.5,2454.1,2.4774]
[1725250563407,3.70406465,2454.6,2454.1,2.4774]
[1725250563609,2.85179,2454.6,2454.1,2.4774]
[1725250563809,1.38170012,2454.5,2454.1,2.4774]
[1725250564444,4.62564133,2454.6,2454.1,2.4774]
[1725250564604,7.47751133,2454.6,2454.1,2.4774]
[1725250564801,0.38284149,2454.5,2454.1,2.4774]
[1725250565131,4.62564133,2454.6,2454.1,2.4774]
[1725250565338,0.38284209,2454.5,2454.1,2.4774]
[1725250565544,0.38284209,2454.4,2454.1,2.4774]
[1725250565698,4.62564133,2454.6,2454.1,2.4774]
[1725250565898,0.38284707,2454.5,2454.1,2.4774]
[1725250566197,0.38284707,2454.4,2454.1,2.4774]
[1725250566395,1.6191347,2454.5,2454.1,2.4774]
[1725250566697,0.38284075,2454.4,2454.1,2.4774]
[1725250567042,1.6191347,2454.5,2454.1,2.4774]
[1725250567242,0.38287931,2454.4,2454.1,2.4774]
[1725250567447,1.6191347,2454.5,2454.1,2.4774]
[1725250567747,0.3828871,2454.4,2454.1,2.4774]
[1725250568036,1.6191347,2454.5,2454.1,2.4774]
[1725250568248,0.38289017,2454.4,2454.1,2.4774]
[1725250568399,1.6191347,2454.5,2454.1,2.4774]
[1725250568738,4.75431869,2454.4,2454.1,2.4774]
[1725250568945,0.3828927,2454.3,2454.1,2.4774]
[1725250569248,4.37142599,2454.4,2454.1,2.4774]
[1725250569411,0.38289032,2454.3,2454.1,2.4774]
[1725250569733,0.3828847,2454.2,2454.1,2.4774]
[1725250569935,4.37142599,2454.4,2454.1,2.4774]
[1725250570411,0.38288043,2454.3,2454.1,2.4774]
[1725250570744,0.38288043,2454.2,2454.1,2.4774]
[1725250571239,4.37142599,2454.4,2454.1,2.4774]
[1725250571443,0.38294648,2454.3,2454.1,2.4774]
[1725250571607,0.85227465,2454.4,2454.1,2.4774]
[1725250571817,0.38299992,2454.3,2454.1,2.4774]
[1725250572017,0.85227465,2454.4,2454.1,2.4774]
[1725250572222,0.38299614,2454.3,2454.1,2.4774]
[1725250572418,0.85227465,2454.4,2454.1,2.4774]
[1725250572647,0.38300239,2454.3,2454.1,2.4774]
[1725250572803,0.85227465,2454.4,2454.1,2.4774]
[1725250573147,0.38297424,2454.3,2454.1,2.4774]
[1725250573346,1.88285325,2454.4,2454.1,2.4774]
[1725250573529,0.38297078,2454.3,2454.1,2.4774]
[1725250573732,0.38297078,2454.3,2453.7,2.4551]
[1725250573733,2.85238,2454.1,2453.7,2.4551]
[1725250573946,0.85638655,2453.9,2453.7,2.4551]
[1725250574247,0.38291211,2453.8,2453.7,2.4551]
[1725250574749,0.38287754,2453.8,2453.7,2.4551]
[1725250576860,0.38287754,2453.8,2453.4,7.32]
[1725250577028,0.92052632,2453.8,2453.5,2.4243]
[1725250577233,0.38287652,2453.7,2453.5,2.4243]
[1725250577558,1.39402094,2453.8,2453.5,2.4243]
[1725250577758,0.80756797,2453.7,2453.5,2.4243]
[1725250577988,0.42467009,2453.7,2453.5,2.4243]
[1725250580421,3.27751009,2453.7,2453.2,2.268]
[1725250580621,4.13389664,2453.7,2453.2,2.268]
[1725250581049,0.38317062,2453.6,2453.2,2.268]
[1725250581216,3.27751009,2453.7,2453.2,2.268]
[1725250581418,0.42467009,2453.7,2453.2,5.1214]
[1725250581667,0.85638655,2454.1,2453.9,2.85248]
[1725250581865,0.85638655,2454.4,2454.3,2.85213]
[1725250582022,0.85638655,2454.6,2454.4,2.85202]
[1725250582219,0.85638655,2454.7,2454.6,2.85178]
[1725250582461,1.2395373,2454.7,2454.6,2.85178]
[1725250582662,0.38315075,2454.7,2454.6,2.85178]
[1725250583767,1.28457983,2455.0,2454.6,2.85178]
[1725250584066,0.38312985,2454.7,2454.6,2.85178]
[1725250584291,4.28457983,2455.1,2454.6,2.85178]
[1725250584501,4.28457983,2455.1,2454.6,5.70348]
[1725250584649,0.88402591,2455.0,2454.6,2.8517]
[1725250584852,1.26715727,2455.0,2454.6,2.8517]
[1725250585103,0.38312312,2454.9,2454.6,2.8517]
[1725250585256,0.38312312,2454.8,2454.6,2.8517]
[1725250585458,0.88402591,2455.0,2454.6,2.8517]
[1725250585683,0.38312826,2454.9,2454.6,2.8517]
[1725250585990,0.88402591,2455.0,2454.6,2.8517]
[1725250586198,0.38313108,2454.9,2454.6,2.8517]
[1725250586398,0.88402591,2455.0,2454.6,2.8517]
[1725250586554,0.38313634,2454.9,2454.6,2.8517]
[1725250586895,4.28457983,2455.1,2454.6,2.8517]
[1725250587100,0.99615395,2455.0,2454.6,2.8517]
[1725250587469,0.38313613,2455.0,2454.6,5.7034]
[1725250587668,0.38313646,2454.9,2454.5,2.85184]
[1725250587882,1.28457983,2455.3,2454.8,2.4047]
[1725250588201,1.28457983,2455.3,2454.9,2.85139]
[1725250588202,0.38308937,2455.2,2454.9,2.85139]
[1725250588501,4.28457983,2455.4,2454.9,2.85139]
[1725250588797,1.26706611,2455.3,2454.9,2.85139]
[1725250589011,0.3830762,2455.2,2454.9,2.85139]
[1725250589790,0.3830762,2455.2,2454.8,2.4047]
[1725250589990,0.93824079,2455.2,2454.8,2.4047]
[1725250590193,0.55516459,2455.2,2454.8,2.4047]
[1725250590566,0.38310576,2455.1,2454.8,2.4047]
[1725250590776,0.55516459,2455.2,2454.8,2.4047]
[1725250590983,0.55516459,2455.2,2454.8,5.25622]
[1725250591896,0.55516459,2455.2,2454.9,2.85142]
[1725250592100,3.0,2455.3,2454.9,5.70277]
[1725250592298,7.44944372,2455.5,2455.0,2.85131]
[1725250592299,3.0,2455.4,2455.0,2.85131]
[1725250592510,0.3830868,2455.3,2455.0,2.85131]
[1725250592805,3.9303223,2455.4,2454.9,2.85135]
[1725250592958,0.38309173,2455.3,2454.9,5.70271]
[1725250593155,3.9303223,2455.4,2454.9,5.70271]
[1725250593361,0.38309007,2455.3,2454.9,5.70271]
[1725250593601,3.9303223,2455.4,2455.0,2.85129]
[1725250593908,0.38308309,2455.3,2455.0,2.85129]
[1725250594062,3.9303223,2455.4,2455.0,2.85129]
[1725250594261,0.38308996,2455.3,2455.0,2.85129]
[1725250594607,3.9303223,2455.4,2455.0,2.85129]
[1725250594805,0.38308075,2455.3,2455.0,2.85129]
[1725250594975,3.9303223,2455.4,2454.9,5.70271]
[1725250595300,3.38308767,2455.3,2454.9,5.70271]
[1725250595602,0.9303223,2455.4,2454.9,2.85135]
[1725250596013,0.80656621,2455.3,2454.8,2.4047]
[1725250596304,0.3831037,2455.2,2454.8,2.4047]
[1725250596512,3.65756621,2455.3,2454.8,2.4047]
[1725250596808,0.36575662,2455.2,2454.8,2.4047]
[1725250596971,0.7488573,2455.2,2454.8,5.25625]
[1725250597171,0.36575662,2455.2,2454.8,5.25625]
[1725250597361,0.36575662,2455.2,2454.8,2.4047]
[1725250598800,3.21684662,2455.2,2454.8,2.4047]
[1725250599006,0.97254628,2455.1,2454.8,2.4047]
[1725250599191,3.65756621,2455.3,2454.8,2.4047]
[1725250599396,6.50861621,2455.3,2454.8,2.4047]
[1725250599559,0.38309773,2455.2,2454.8,2.4047]
[1725250599906,3.65756621,2455.3,2454.8,2.4047]
[1725250600211,0.80656621,2455.3,2454.8,2.4047]
[1725250600367,1.28457983,2455.7,2455.0,2.4355]
[1725250600562,0.38306741,2455.6,2455.1,3.38795834]
[1725250600766,4.13514983,2455.7,2455.1,2.85113]
[1725250601102,0.38304858,2455.6,2455.1,2.85113]
[1725250601260,5.70118,2455.7,2455.1,2.85113]
[1725250601464,1.08161707,2455.6,2455.1,5.70226]
[1725250601665,0.69857298,2455.6,2455.1,5.70226]
[1725250601892,0.69857298,2455.6,2455.1,2.85113]
[1725250602114,0.3549143,2455.5,2455.1,2.85113]
[1725250602466,0.3549143,2455.5,2455.1,5.70225]
[1725250602691,2.85057,2455.7,2455.1,5.70225]
[1725250602891,0.38305057,2455.6,2455.1,5.70225]
[1725250603076,2.85057,2455.7,2455.1,5.70225]
[1725250603283,2.85057,2455.7,2455.1,2.85112]
[1725250603568,5.70115,2455.7,2455.1,2.85112]
[1725250603802,3.54922298,2455.6,2455.0,2.4355]
[1725250604511,3.54922298,2455.6,2455.0,5.28675]
[1725250608050,0.69857298,2455.6,2455.1,2.85118]
[1725250608202,2.85057,2455.7,2455.2,2.85108]
[1725250608398,2.85057,2455.7,2455.1,2.85114]
[1725250608608,3.0,2455.9,2455.3,2.4918]
[1725250608929,5.85012,2456.1,2455.6,2.2711]
[1725250609083,0.71346998,2456.0,2455.6,2.2711]
[1725250609795,2.85028,2455.9,2455.3,2.2711]
[1725250610046,0.356375,2455.8,2455.3,2.2711]
[1725250610602,0.356375,2455.8,2455.3,5.122]
[1725250610964,0.356375,2455.8,2455.4,2.85083]
[1725250611163,0.71346998,2456.0,2455.4,2.85078]
[1725250611463,0.71346998,2456.0,2455.4,5.70156]
[1725250611950,0.71346998,2456.0,2455.4,2.85077]
[1725250612107,0.71346998,2456.0,2455.4,5.70153]
[1725250612313,0.71346998,2456.0,2455.4,2.85076]
[1725250612511,0.656356,2455.9,2455.4,2.85076]
[1725250612812,0.656356,2455.9,2455.4,5.70154]
[1725250613013,0.656356,2455.9,2455.4,2.85076]
[1725250613614,3.656356,2455.9,2455.4,2.85076]
[1725250613962,6.506646,2455.9,2455.4,2.85076]
[1725250614112,0.6506646,2455.8,2455.4,2.85076]
[1725250618235,3.0,2455.9,2455.5,2.2934]
[1725250618429,3.0,2456.0,2455.5,5.14413]
[1725250618744,3.0,2456.0,2455.6,2.85054]
[1725250618982,5.84994,2456.2,2455.6,2.85054]
[1725250619277,0.569983,2456.1,2455.6,2.85054]
[1725250621589,0.569983,2456.1,2455.7,2.8505]
[1725250622738,0.569983,2456.1,2455.8,2.475]
[1725250623980,4.13421983,2456.5,2455.9,2.85024]
[1725250624297,2.84982,2456.3,2455.8,2.475]
[1725250624586,4.22970104,2456.0,2455.5,2.4607]
[1725250624948,1.37954104,2456.0,2455.5,5.31143]
[1725250625471,2.85013,2456.1,2455.5,5.31143]
[1725250627265,0.38298237,2456.0,2455.5,5.31143]
[1725250627435,2.85013,2456.1,2455.5,6.127651]
[1725250627636,0.38298109,2456.0,2455.5,6.127651]
[1725250627875,2.85013,2456.1,2455.5,6.127651]
[1725250628084,0.38297889,2456.0,2455.5,6.127651]
[1725250628289,2.85013,2456.1,2455.5,6.127651]
[1725250628495,0.3829802,2456.0,2455.5,6.127651]
[1725250628653,2.85013,2456.1,2455.5,6.127651]
[1725250628853,0.38297395,2456.0,2455.5,6.127651]
[1725250629053,2.85013,2456.1,2455.5,6.127651]
[1725250629524,0.38297525,2456.0,2455.5,6.127651]
[1725250629683,2.85013,2456.1,2455.5,6.127651]
[1725250630004,2.85038,2455.9,2455.5,2.4607]
[1725250630357,0.38300409,2455.8,2455.5,2.4607]
[1725250630597,2.85038,2455.9,2455.5,2.4607]
[1725250630763,0.38300855,2455.8,2455.5,2.4607]
[1725250630964,2.85038,2455.9,2455.5,2.4607]
[1725250631304,3.94957778,2455.9,2455.5,2.4607]
[1725250631462,0.38300051,2455.8,2455.5,2.4607]
[1725250631805,3.94957778,2455.9,2455.5,2.4607]
[1725250632004,0.38300189,2455.8,2455.5,2.4607]
[1725250632173,3.94957778,2455.9,2455.5,2.4607]
[1725250632370,0.38300202,2455.8,2455.5,2.4607]
[1725250632573,2.85038,2455.9,2455.5,2.4607]
[1725250632788,0.38300208,2455.8,2455.5,2.4607]
[1725250632971,5.70072,2455.9,2455.5,2.4607]
[1725250633173,0.38300331,2455.8,2455.5,2.4607]
[1725250633373,2.85034,2455.9,2455.5,2.4607]
[1725250633596,2.85059,2455.7,2455.5,2.4607]
[1725250633797,5.70087,2455.8,2455.5,2.4607]
[1725250633999,0.3830265,2455.7,2455.5,2.4607]
[1725250634200,2.8504,2455.8,2455.5,2.4607]
[1725250634412,0.38301879,2455.7,2455.5,2.4607]
[1725250634619,4.28429149,2455.8,2455.5,2.4607]
[1725250634775,0.38302434,2455.7,2455.5,2.4607]
[1725250635121,0.38302434,2455.6,2455.5,2.4607]
[1725250635969,7.13475149,2455.8,2455.5,2.4607]
[1725250636211,3.91738665,2455.7,2455.5,2.4607]
[1725250636419,3.23363505,2455.6,2455.2,2.2581]
[1725250636619,3.7992618,2455.6,2455.2,2.2581]
[1725250636910,0.38303419,2455.5,2455.2,2.2581]
[1725250637082,6.6499718,2455.6,2455.2,2.2581]
[1725250637288,0.38303348,2455.5,2455.2,2.2581]
[1725250637513,6.6499718,2455.6,2455.2,2.2581]
[1725250637673,0.38303374,2455.5,2455.2,2.2581]
[1725250637982,3.7992618,2455.6,2455.2,2.2581]
[1725250638186,0.38303167,2455.5,2455.2,2.2581]
[1725250638389,2.85075,2455.5,2455.2,2.2581]
[1725250638593,3.23388645,2455.4,2455.0,2.2702]
[1725250638917,2.85087,2455.4,2455.0,2.2702]
[1725250640208,0.38302376,2455.3,2455.0,2.2702]
[1725250640518,2.85087,2455.4,2455.0,2.2702]
[1725250641128,2.85132,2455.0,2454.8,2.3234]
[1725250641490,5.70229,2455.2,2454.8,2.3234]
[1725250641687,3.23425837,2455.1,2454.8,2.3234]
[1725250641888,2.85121,2455.1,2454.8,2.3234]
[1725250642231,4.13549983,2455.4,2454.8,2.86890496]
[1725250642518,2.85092,2455.4,2454.9,5.17483]
[1725250642688,0.38306296,2455.3,2455.0,2.85131]
[1725250642889,3.0,2455.5,2455.1,2.3234]
[1725250643213,0.38305222,2455.4,2455.1,2.3234]
[1725250643515,3.0,2455.5,2455.1,5.77775195]
[1725250643719,0.38305073,2455.4,2455.1,2.92658195]
[1725250644018,0.38305073,2455.3,2455.1,2.3234]
[1725250644326,7.13519983,2455.6,2455.1,5.17458]
[1725250644627,0.99591872,2455.5,2455.1,2.3234]
[1725250644920,0.38304566,2455.4,2455.1,2.92658195]
[1725250645127,0.38304566,2455.3,2455.1,2.92658195]
[1725250645276,1.28457983,2455.5,2455.1,2.92658195]
[1725250645477,0.38304659,2455.4,2455.3,5.18124]
[1725250645820,1.70454931,2455.8,2455.2,0.94862315]
[1725250645821,1.28457983,2455.8,2455.5,2.3303]
[1725250646128,0.38300827,2455.7,2455.5,2.3303]
[1725250646274,0.38300827,2455.6,2455.5,2.3303]
[1725250646474,0.99582343,2455.7,2455.5,2.3303]
[1725250646673,0.38300827,2455.6,2455.5,2.3303]
[1725250647905,1.28457983,2455.7,2455.5,2.3303]
[1725250648103,2.85069,2455.6,2455.0,9.6503]
[1725250648304,2.85087,2455.4,2455.0,2.3303]
[1725250648618,7.13538983,2455.5,2455.0,2.3303]
[1725250648991,9.98621983,2455.5,2455.0,2.3303]
[1725250649638,1.28457983,2455.4,2455.0,2.3303]
[1725250649839,2.85087,2455.4,2455.0,2.3303]
[1725250650042,2.85099,2455.3,2455.0,2.3303]
[1725250650354,2.85115,2455.2,2455.0,2.3303]
[1725250650497,2.85099,2455.3,2455.0,2.3303]
[1725250651112,5.70204,2455.3,2455.0,2.3303]
[1725250651596,2.85112,2455.2,2455.0,2.3303]
[1725250652331,2.85099,2455.3,2455.0,2.3303]
[1725250653311,5.70204,2455.3,2455.0,2.3303]
[1725250653497,4.02010691,2455.3,2455.0,2.3303]
[1725250653948,2.85111,2455.2,2455.0,2.3303]
[1725250654106,2.8512,2455.1,2455.0,2.3303]
[1725250655506,2.85133,2455.0,2454.6,2.3521]
[1725250655722,2.85133,2455.0,2454.6,2.872506]
[1725250658020,5.70228,2455.2,2454.6,2.872506]
[1725250658193,2.85111,2455.2,2454.7,2.3607]
[1725250660570,5.70227,2455.2,2454.7,2.3607]
[1725250661643,2.85111,2455.2,2454.7,2.3607]
[1725250662033,2.85111,2455.2,2454.7,2.9339826]
[1725250662226,2.85093,2455.4,2454.8,2.85152]
[1725250662551,6.98643983,2455.4,2454.9,2.2639]
[1725250662752,2.85097,2455.3,2454.9,2.2639]
[1725250663638,4.28457983,2455.5,2455.0,2.85132]
[1725250663843,3.0,2455.5,2455.1,2.4335]
[1725250664031,1.28457983,2455.6,2455.1,2.4335]
[1725250664032,3.0,2455.6,2455.1,2.4335]
[1725250664646,3.0,2455.6,2455.1,2.961982]
[1725250665165,3.0,2455.6,2455.2,2.4206]
[1725250665528,3.0,2455.6,2455.2,5.27168]
[1725250665768,1.28457983,2455.7,2455.3,2.4206]
[1725250665971,1.28457983,2455.8,2455.4,2.4206]
[1725250666173,1.28457983,2455.9,2455.4,2.4206]
[1725250666339,1.89740144,2455.8,2455.4,2.4206]
[1725250666530,1.28457983,2455.8,2455.4,2.4206]
[1725250666734,1.28457983,2455.9,2455.4,2.4206]
[1725250667033,1.89739124,2455.8,2455.4,2.4206]
[1725250667242,1.28457983,2455.8,2455.4,2.4206]
[1725250669140,1.28457983,2455.8,2455.4,5.27144]
[1725250669463,1.28457983,2455.8,2455.4,2.4206]
[1725250670739,0.61282557,2455.7,2455.4,2.4206]
[1725250670935,1.28457983,2455.8,2455.4,2.4206]
[1725250671147,0.61283032,2455.7,2455.4,2.4206]
[1725250671378,1.28457983,2455.8,2455.4,2.4206]
[1725250671579,0.61282809,2455.7,2455.4,2.4206]
[1725250671784,1.28457983,2455.8,2455.4,2.4206]
[1725250671991,0.61282227,2455.7,2455.4,2.4206]
[1725250672205,1.28457983,2455.8,2455.4,3.232855]
[1725250672404,1.28457983,2455.8,2455.5,2.4133]
[1725250672619,4.28457983,2455.9,2455.5,2.4133]
[1725250672775,1.89737439,2455.8,2455.5,2.4133]
[1725250672972,1.28457983,2455.8,2455.5,2.4133]
[1725250676105,0.61279841,2455.7,2455.5,2.4133]
[1725250676309,1.28457983,2455.8,2455.5,2.4133]
[1725250676511,0.61280966,2455.7,2455.5,2.4133]
[1725250676681,1.28457983,2455.8,2455.5,2.4133]
[1725250677113,5.51787981,2455.8,2455.5,2.4133]
[1725250677284,0.61280585,2455.7,2455.5,2.4133]
[1725250677611,5.51787981,2455.8,2455.5,2.4133]
[1725250677905,0.61281268,2455.7,2455.5,2.4133]
[1725250678111,5.51787981,2455.8,2455.5,2.4133]
[1725250678497,1.28457983,2455.7,2455.5,2.4133]
[1725250678647,3.46355335,2455.6,2455.1,2.2996]
[1725250678855,2.85073,2455.6,2455.1,2.2996]
[1725250679017,2.85083,2455.5,2455.1,2.2996]
[1725250679205,4.13540983,2455.5,2455.1,2.2996]
[1725250679412,2.85077,2455.5,2455.1,2.2996]
[1725250679607,4.13534983,2455.5,2455.1,2.2996]
[1725250680306,2.85086,2455.4,2455.1,2.2996]
[1725250680507,2.85109,2455.2,2455.1,2.2996]
[1725250680745,2.85123,2455.1,2454.6,2.2562]
[1725250686013,1.28457983,2455.2,2454.6,2.2562]
[1725250686217,2.8515,2454.9,2454.6,2.2562]
[1725250686943,2.8515,2454.9,2454.5,7.32]
[1725250686944,5.84016914,2455.3,2454.7,2.4582]
[1725250687220,2.14002713,2455.5,2454.9,2.4582]